bitfinex-derivatives/quotes_BTCF0:USTF0_20251009
["timestamp","ask_amount","ask_price","bid_price","bid_amount"]
[1760022168632,0.50067,121650.0,121640.0,0.77572]
[1760022168833,0.50067,121650.0,121640.0,0.77568]
[1760022169030,0.41451,121650.0,121640.0,0.77568]
[1760022169230,0.50067,121650.0,121640.0,0.77568]
[1760022169426,0.50067,121650.0,121640.0,0.77668]
[1760022169937,0.13987,121650.0,121640.0,0.77668]
[1760022170337,0.05371,121650.0,121640.0,0.77668]
[1760022170534,0.13987,121650.0,121640.0,0.001]
[1760022170735,0.84301745,121650.0,121640.0,0.77668]
[1760022170936,0.84301745,121650.0,121640.0,0.002]
[1760022171238,0.84301745,121650.0,121640.0,0.77668]
[1760022171740,1.24301745,121650.0,121640.0,0.002]
[1760022172927,0.90067,121650.0,121640.0,0.002]
[1760022173132,1.24301745,121650.0,121640.0,0.002]
[1760022174039,1.30960139,121650.0,121640.0,0.002]
[1760022174839,0.96725394,121650.0,121640.0,0.002]
[1760022175039,1.30960139,121650.0,121640.0,0.002]
[1760022175436,0.84301745,121650.0,121640.0,0.002]
[1760022176131,1.24301745,121650.0,121640.0,0.002]
[1760022177340,0.84301745,121650.0,121640.0,0.002]
[1760022179138,1.24301745,121650.0,121640.0,0.002]
[1760022180042,1.96382745,121650.0,121620.0,0.22948]
[1760022180236,0.05371,121610.0,121600.0,0.3608]
[1760022180434,0.05371,121610.0,121600.0,1.13532]
[1760022180638,0.05371,121620.0,121600.0,1.2175239]
[1760022180837,0.05371,121620.0,121600.0,1.6175239]
[1760022181747,0.13987,121600.0,121590.0,0.01543725]
[1760022182046,0.05371,121550.0,121540.0,0.3608]
[1760022182242,0.05371,121550.0,121540.0,0.54795955]
[1760022182437,0.05371,121550.0,121540.0,1.15027955]
[1760022182639,0.05371,121560.0,121540.0,0.37579955]
[1760022182951,0.41451,121580.0,121550.0,1.87762745]
[1760022183247,0.41451,121580.0,121550.0,1.13528]
[1760022183437,0.05371,121580.0,121560.0,0.3608]
[1760022183634,0.05371,121580.0,121570.0,0.77452]
[1760022183832,0.05371,121580.0,121560.0,0.42532854]
[1760022184135,0.05371,121580.0,121570.0,0.77448]
[1760022184637,0.41451,121590.0,121570.0,0.77448]
[1760022184838,0.05371,121580.0,121570.0,0.002]
[1760022185042,0.05371,121580.0,121570.0,0.77652]
[1760022185837,0.05371,121580.0,121570.0,0.002]
[1760022186346,0.05371,121580.0,121570.0,0.77652]
[1760022187041,0.05371,121580.0,121570.0,0.002]
[1760022187244,0.05371,121580.0,121570.0,0.77652]
[1760022187442,0.05371,121580.0,121570.0,0.77552]
[1760022187643,0.05371,121580.0,121570.0,0.77652]
[1760022188238,0.05381,121580.0,121570.0,0.77652]
[1760022188438,0.05381,121580.0,121570.0,0.77648]
[1760022188642,0.05381,121580.0,121570.0,0.002]
[1760022188844,0.05381,121580.0,121570.0,0.77648]
[1760022190249,0.0001,121580.0,121570.0,1.6195042]
[1760022190440,0.0001,121580.0,121570.0,1.96185165]
[1760022190745,0.0001,121580.0,121570.0,1.53728]
[1760022191342,0.0001,121580.0,121570.0,1.6195042]
[1760022192049,0.0001,121580.0,121570.0,1.18737165]
[1760022192244,0.0001,121580.0,121570.0,1.96185165]
[1760022194041,0.0001,121580.0,121570.0,1.18737165]
[1760022194246,0.05371,121610.0,121580.0,0.0822138]
[1760022194445,0.07615234,121610.0,121590.0,1.1352]
[1760022195152,0.07615234,121610.0,121600.0,0.3608]
[1760022195747,0.07615234,121610.0,121600.0,1.13516]
[1760022195952,0.02244234,121610.0,121600.0,1.87750745]
[1760022196258,0.05221,121610.0,121600.0,1.53516]
[1760022196452,0.05221,121610.0,121600.0,1.53616]
[1760022196453,0.07465677,121610.0,121600.0,1.53616]
[1760022197149,0.07465677,121610.0,121600.0,1.53716]
[1760022197349,0.07465677,121610.0,121600.0,1.53916]
[1760022197957,0.07465677,121610.0,121600.0,0.7648]
[1760022198350,0.07465677,121610.0,121600.0,3.65752696]
[1760022198954,0.07465677,121610.0,121600.0,0.83028696]
[1760022199150,0.07465677,121610.0,121600.0,1.60456696]
[1760022199647,0.02244677,121610.0,121600.0,1.60456696]
[1760022199851,0.02244677,121610.0,121600.0,1.60448696]
[1760022200254,0.02244677,121610.0,121600.0,2.02503831]
[1760022200453,0.05221,121630.0,121600.0,2.02703401]
[1760022200756,0.05221,121620.0,121610.0,2.41372]
[1760022200955,0.07467694,121620.0,121610.0,3.18792]
[1760022201551,0.07467694,121620.0,121610.0,3.18788]
[1760022202155,0.07467694,121620.0,121610.0,0.3608]
[1760022202356,0.07467694,121620.0,121610.0,3.1878]
[1760022202858,0.07467694,121620.0,121610.0,3.1888]
[1760022203052,0.07467694,121620.0,121610.0,2.41464]
[1760022203254,0.02246694,121620.0,121610.0,3.2709571]
[1760022203552,0.07467694,121620.0,121610.0,3.18868]
[1760022203758,0.07467694,121620.0,121610.0,0.3638]
[1760022204454,0.07467694,121620.0,121610.0,2.8298]
[1760022204646,0.16520694,121620.0,121610.0,0.778]
[1760022205453,0.16520694,121620.0,121610.0,0.004]
[1760022205652,0.16520694,121620.0,121610.0,0.778]
[1760022206557,0.16520694,121620.0,121610.0,0.004]
[1760022206749,0.16520694,121620.0,121610.0,0.77796]
[1760022207559,0.16520694,121620.0,121610.0,0.77792]
[1760022208354,0.16520694,121620.0,121610.0,0.77788]
[1760022208556,1.26835439,121620.0,121610.0,0.004]
[1760022208753,1.26835439,121620.0,121610.0,0.77788]
[1760022208955,1.26835439,121620.0,121610.0,0.004]
[1760022209253,1.26835439,121620.0,121610.0,0.52256]
[1760022210058,1.3095255,121620.0,121610.0,0.52256]
[1760022210756,1.3095255,121620.0,121610.0,0.004]
[1760022210962,1.3095255,121620.0,121610.0,0.58776]
[1760022211157,0.05221,121580.0,121570.0,2.42763097]
[1760022211352,0.05221,121580.0,121570.0,3.20143097]
[1760022212156,0.05221,121580.0,121570.0,2.42763097]
[1760022212363,0.05221,121580.0,121570.0,2.51285517]
[1760022212761,0.05221,121580.0,121570.0,3.67313373]
[1760022212963,0.05221,121580.0,121570.0,2.81714953]
[1760022213162,0.05221,121580.0,121570.0,3.20739097]
[1760022213358,0.05221,121580.0,121570.0,3.20639097]
[1760022214053,0.05221,121580.0,121570.0,0.37987097]
[1760022214363,0.88705856,121580.0,121570.0,0.005]
[1760022214554,0.88705856,121580.0,121570.0,0.77872]
[1760022214862,0.52625856,121580.0,121570.0,0.77872]
[1760022215064,0.52625856,121580.0,121570.0,0.005]
[1760022215562,0.92625856,121580.0,121570.0,0.77872]
[1760022215754,0.92625856,121580.0,121570.0,0.005]
[1760022215958,0.92625856,121580.0,121570.0,0.77872]
[1760022216162,0.92625856,121580.0,121570.0,0.005]
[1760022216362,0.92625856,121580.0,121570.0,0.77872]
[1760022216562,0.92625856,121580.0,121570.0,0.005]
[1760022216762,0.54274,121580.0,121570.0,0.77868]
[1760022216964,0.92625856,121580.0,121570.0,0.005]
[1760022217265,0.54274,121580.0,121570.0,0.77868]
[1760022217469,0.92625856,121580.0,121570.0,0.77868]
[1760022218065,0.92625856,121580.0,121570.0,0.005]
[1760022218367,1.28705856,121580.0,121570.0,0.005]
[1760022218566,1.28705856,121580.0,121570.0,0.77864]
[1760022218864,0.05221,121530.0,121520.0,2.41384]
[1760022219068,0.05221,121540.0,121520.0,2.496098]
[1760022219367,0.41301,121560.0,121530.0,0.82656586]
[1760022219568,0.41301,121560.0,121550.0,0.3608]
[1760022219569,0.05221,121560.0,121550.0,0.3608]
[1760022219757,0.05221,121560.0,121550.0,1.13444]
[1760022219957,0.05221,121570.0,121550.0,1.14844408]
[1760022220157,0.05051,121560.0,121550.0,1.14844408]
[1760022220865,0.05051,121560.0,121550.0,1.14944408]
[1760022221269,0.05051,121610.0,121580.0,0.3608]
[1760022221571,0.05051,121610.0,121600.0,0.7216]
[1760022223171,0.05251,121610.0,121600.0,0.7216]
[1760022223560,0.05251,121610.0,121600.0,0.7226]
[1760022223770,0.002,121610.0,121600.0,0.8048039]
[1760022224069,0.05051,121630.0,121600.0,1.64128046]
[1760022224270,0.05051,121620.0,121600.0,0.002]
[1760022224472,0.05051,121620.0,121610.0,1.26748]
[1760022224667,0.05051,121620.0,121610.0,0.7216]
[1760022224866,0.05051,121620.0,121610.0,1.49512]
[1760022226169,0.05051,121620.0,121610.0,1.5624556]
[1760022226963,0.05051,121620.0,121610.0,0.7889356]
[1760022227169,0.05051,121620.0,121610.0,1.5623756]
[1760022227765,0.05051,121620.0,121610.0,1.5633756]
[1760022227974,0.05051,121620.0,121610.0,1.6455727]
[1760022228175,0.05051,121620.0,121610.0,1.5633756]
[1760022228472,0.05051,121620.0,121610.0,1.5643756]
[1760022229171,0.05051,121620.0,121610.0,0.7899356]
[1760022229370,0.05051,121620.0,121610.0,1.5642956]
[1760022231072,0.05051,121620.0,121610.0,0.7909356]
[1760022231268,0.05051,121620.0,121610.0,1.5642156]
[1760022231475,0.05051,121620.0,121610.0,1.5641756]
[1760022231874,0.43402856,121620.0,121610.0,0.7909356]
[1760022232074,0.91740856,121620.0,121610.0,1.5641756]
[1760022232276,0.91740856,121620.0,121610.0,1.5631756]
[1760022232672,0.91740856,121620.0,121610.0,1.5641756]
[1760022233179,0.91740856,121620.0,121610.0,1.5621756]
[1760022233977,0.91740856,121620.0,121610.0,0.7889356]
[1760022234174,0.05051,121650.0,121640.0,0.0821769]
[1760022234379,0.05051,121650.0,121640.0,1.96045546]
[1760022234578,0.05051,121650.0,121640.0,1.49476]
[1760022235173,0.05212,121680.0,121640.0,1.49476]
[1760022235174,0.05212,121680.0,121650.0,0.0821673]
[1760022235479,0.05212,121680.0,121670.0,0.3608]
[1760022235480,0.14088,121680.0,121670.0,0.3608]
[1760022236273,0.14088,121680.0,121670.0,0.42815497]
[1760022236475,0.14088,121680.0,121670.0,1.20123497]
[1760022236476,0.05212,121680.0,121670.0,1.20123497]
[1760022236676,0.05212,121680.0,121670.0,1.20119497]
[1760022237083,0.05212,121690.0,121670.0,1.28334817]
[1760022237279,0.05212,121690.0,121680.0,0.3608]
[1760022237583,0.05212,121690.0,121680.0,0.4429498]
[1760022237881,0.05212,121690.0,121680.0,1.13376]
[1760022238083,0.05212,121690.0,121680.0,0.3608]
[1760022238281,0.05212,121690.0,121680.0,1.13376]
[1760022238480,0.05312,121690.0,121680.0,1.13376]
[1760022239379,0.05312,121690.0,121680.0,1.14756361]
[1760022239682,0.05312,121690.0,121680.0,0.3608]
[1760022239877,0.05412,121690.0,121680.0,1.13368]
[1760022240179,0.05412,121690.0,121680.0,0.3608]
[1760022240378,0.05412,121690.0,121680.0,1.14725433]
[1760022240578,0.05412,121690.0,121680.0,1.13368]
[1760022241785,0.05412,121690.0,121680.0,1.14714785]
[1760022242380,0.05412,121690.0,121680.0,1.13368]
[1760022242983,0.05412,121690.0,121680.0,1.22928529]
[1760022243178,0.002,121690.0,121680.0,1.61260385]
[1760022243784,0.002,121690.0,121680.0,1.61256385]
[1760022243985,0.002,121690.0,121680.0,0.83992385]
[1760022244186,0.002,121690.0,121680.0,1.53041405]
[1760022244391,0.002,121690.0,121680.0,1.61256385]
[1760022244988,0.05412,121690.0,121680.0,1.22904529]
[1760022247582,0.05412,121690.0,121680.0,0.37425549]
[1760022247789,0.05412,121690.0,121680.0,1.22884529]
[1760022248590,0.05412,121690.0,121680.0,1.22880529]
[1760022248801,0.05412,121690.0,121680.0,0.45640529]
[1760022248998,0.05412,121690.0,121680.0,1.22880529]
[1760022249295,0.05412,121690.0,121680.0,1.13316]
[1760022249296,0.14288,121690.0,121680.0,1.13316]
[1760022249497,0.14288,121690.0,121680.0,0.3608]
[1760022249703,0.05412,121690.0,121680.0,1.22932231]
[1760022250700,0.05412,121690.0,121680.0,1.14717251]
[1760022251499,0.05412,121690.0,121680.0,1.13312]
[1760022251700,0.3653,121730.0,121680.0,1.54733856]
[1760022251904,0.43745198,121730.0,121710.0,0.41419]
[1760022252507,0.45020777,121730.0,121710.0,0.05339]
[1760022252701,0.08940777,121730.0,121710.0,0.41419]
[1760022253096,0.78351856,121720.0,121700.0,0.3608]
[1760022253308,0.80530054,121720.0,121700.0,0.3608]
[1760022253501,0.40530054,121720.0,121700.0,0.3608]
[1760022253698,0.78351856,121710.0,121690.0,0.3608]
[1760022253902,0.38351856,121700.0,121690.0,0.3608]
[1760022254102,0.80530054,121700.0,121690.0,0.3608]
[1760022254910,0.42178198,121700.0,121690.0,0.3608]
[1760022255110,0.48842406,121700.0,121690.0,0.3608]
[1760022255410,0.49042406,121700.0,121690.0,0.3608]
[1760022256109,0.49142406,121700.0,121690.0,0.3608]
[1760022258009,1.26350406,121700.0,121690.0,0.41419]
[1760022258605,1.26350406,121700.0,121690.0,0.3608]
[1760022259206,1.26350406,121700.0,121690.0,0.41419]
[1760022259811,0.49142406,121700.0,121690.0,0.41419]
[1760022260615,0.49142406,121700.0,121690.0,0.3608]
[1760022261311,0.02478198,121700.0,121690.0,0.88645856]
[1760022261515,0.02478198,121700.0,121690.0,0.79770856]
[1760022261915,0.02478198,121700.0,121690.0,0.41419]
[1760022262415,0.02478198,121700.0,121690.0,0.3608]
[1760022262416,0.42478198,121700.0,121690.0,0.3608]
[1760022264024,0.4911349,121700.0,121690.0,0.88645856]
[1760022264914,0.4911349,121700.0,121690.0,0.79770856]
[1760022267409,0.4911349,121700.0,121690.0,0.41419]
[1760022267816,0.4911349,121700.0,121690.0,0.79770856]
[1760022268216,0.4911349,121700.0,121690.0,0.41419]
[1760022268718,0.4911349,121700.0,121690.0,0.3608]
[1760022269618,1.37947432,121700.0,121660.0,0.41419]
[1760022269823,0.74431856,121690.0,121660.0,0.81419]
[1760022270120,0.76610054,121690.0,121660.0,0.81419]
[1760022270622,0.77168,121680.0,121660.0,1.19770856]
[1760022270919,0.79346198,121680.0,121660.0,1.19770856]
[1760022271221,0.79346198,121680.0,121660.0,0.81419]
[1760022271619,1.15626198,121680.0,121660.0,0.81419]
[1760022271818,0.74431856,121670.0,121650.0,0.41419]
[1760022272012,0.3608,121660.0,121650.0,0.45339]
[1760022272211,0.38258198,121660.0,121650.0,0.45339]
[1760022272418,0.02178198,121660.0,121650.0,0.45339]
[1760022272818,0.3608,121660.0,121650.0,0.45339]
[1760022273017,0.02178198,121660.0,121650.0,0.45339]
[1760022273413,0.01261271,121660.0,121650.0,0.45339]
[1760022273719,0.001,121660.0,121650.0,0.81419]
[1760022273920,0.03516993,121660.0,121650.0,0.81419]
[1760022274112,0.02278198,121660.0,121650.0,0.81419]
[1760022274319,0.02278198,121660.0,121650.0,0.45339]
[1760022274823,0.03511311,121660.0,121650.0,0.81419]
[1760022275013,0.03611311,121660.0,121650.0,0.90294]
[1760022275213,0.03611311,121660.0,121650.0,0.81419]
[1760022275718,0.10035203,121660.0,121650.0,0.81419]
[1760022275918,0.02378198,121660.0,121650.0,0.81419]
[1760022276314,0.01458493,121660.0,121650.0,0.81419]
[1760022276719,0.01458493,121660.0,121650.0,0.90294]
[1760022277026,0.01458493,121660.0,121650.0,0.81419]
[1760022278827,0.01458493,121660.0,121650.0,0.90294]
[1760022279427,0.01458493,121660.0,121650.0,0.81419]
[1760022279825,0.0796256,121660.0,121650.0,0.81419]
[1760022281528,0.0796256,121660.0,121650.0,0.90865]
[1760022282028,0.0796256,121660.0,121650.0,0.81419]
[1760022282425,0.0796256,121660.0,121650.0,0.41419]
[1760022283323,0.0796256,121660.0,121650.0,0.81419]
[1760022283521,0.0796256,121660.0,121650.0,1.25130271]
[1760022284727,0.0796256,121660.0,121650.0,0.90865]
[1760022288331,0.0796256,121660.0,121650.0,0.4]
[1760022288536,0.78307831,121660.0,121630.0,0.50862]
[1760022288736,0.78307831,121660.0,121640.0,0.7608]
[1760022289031,0.8507456,121660.0,121640.0,0.81516]
[1760022289230,1.2115456,121660.0,121640.0,0.81516]
[1760022289432,0.8507456,121660.0,121640.0,0.81516]
[1760022289633,0.0796256,121660.0,121640.0,0.90959]
[1760022290338,0.0786256,121660.0,121640.0,0.90959]
[1760022290532,0.0796256,121660.0,121640.0,0.81516]
[1760022290733,0.0796256,121660.0,121640.0,0.90959]
[1760022290931,0.06635292,121700.0,121680.0,0.05436]
[1760022291137,0.02257774,121700.0,121690.0,0.05995106]
[1760022291336,0.3608,121720.0,121690.0,0.85783377]
[1760022291534,0.80620884,121720.0,121710.0,0.3608]
[1760022291734,0.80620884,121720.0,121710.0,0.36639106]
[1760022292140,0.03516884,121720.0,121710.0,0.36639106]
[1760022292441,0.03516884,121720.0,121710.0,0.42075106]
[1760022292737,0.03716884,121720.0,121710.0,0.42075106]
[1760022293539,0.01458849,121720.0,121710.0,0.42075106]
[1760022293936,0.01658849,121720.0,121710.0,0.42075106]
[1760022294541,0.01658849,121720.0,121710.0,0.36639106]
[1760022294840,0.08358093,121720.0,121710.0,0.36639106]
[1760022295443,0.08358093,121720.0,121710.0,0.42075106]
[1760022295943,0.08358093,121720.0,121710.0,0.36639106]
[1760022296137,0.08358093,121720.0,121710.0,0.42075106]
[1760022296543,0.08358093,121720.0,121710.0,0.51518106]
[1760022296945,0.08358093,121720.0,121710.0,0.42075106]
[1760022297646,0.08358093,121720.0,121710.0,0.36639106]
[1760022298042,0.44879386,121720.0,121710.0,0.36639106]
[1760022298245,0.10614115,121720.0,121710.0,0.36639106]
[1760022298547,0.08358093,121720.0,121710.0,0.36639106]
[1760022299740,0.08358093,121720.0,121710.0,0.00559106]
[1760022299945,1.98015887,121720.0,121690.0,0.29811087]
[1760022300149,0.70345271,121710.0,121690.0,0.29811087]
[1760022300349,0.70345271,121710.0,121690.0,0.35247087]
[1760022300548,0.78703364,121720.0,121690.0,0.35247087]
[1760022300744,0.77052,121710.0,121690.0,0.44690087]
[1760022300953,0.85410093,121720.0,121700.0,0.05436]
[1760022301246,0.08358093,121720.0,121700.0,0.50959]
[1760022301647,0.08358093,121720.0,121710.0,0.05436]
[1760022302048,0.08158093,121720.0,121710.0,0.05436]
[1760022302553,0.08158093,121720.0,121700.0,0.41516]
[1760022302848,0.08358093,121720.0,121700.0,0.41516]
[1760022303749,0.44438093,121720.0,121700.0,0.05436]
[1760022304348,0.44438093,121720.0,121690.0,0.35247087]
[1760022304349,0.78703364,121720.0,121690.0,0.35247087]
[1760022304545,0.3608,121710.0,121690.0,0.29811087]
[1760022304746,1.47381271,121710.0,121680.0,0.44676894]
[1760022305356,0.70345271,121690.0,121660.0,0.44676894]
[1760022305558,0.01544,121670.0,121650.0,0.41516]
[1760022306051,0.07952234,121670.0,121650.0,0.3608]
[1760022306253,0.11996,121660.0,121650.0,0.3608]
[1760022306851,0.13243961,121660.0,121650.0,0.3608]
[1760022307057,0.83589232,121660.0,121630.0,0.05436]
[1760022307259,0.08161,121640.0,121630.0,0.41516]
[1760022308159,0.08161,121640.0,121630.0,0.50959]
[1760022308354,0.08161,121640.0,121630.0,0.41616]
[1760022308856,0.08161,121640.0,121630.0,0.41716]
[1760022309260,0.08161,121640.0,121630.0,0.002]
[1760022309466,0.43691271,121640.0,121630.0,0.002]
[1760022310462,0.50344296,121640.0,121630.0,0.003]
[1760022311060,0.16079025,121640.0,121630.0,0.003]
[1760022311462,0.52159025,121640.0,121630.0,0.003]
[1760022311662,0.16079025,121640.0,121630.0,0.003]
[1760022312456,0.50344296,121640.0,121630.0,0.003]
[1760022312668,2.05717061,121640.0,121630.0,0.003]
[1760022314262,0.11269,121620.0,121610.0,0.3608]
[1760022314561,0.45534271,121620.0,121600.0,0.41523917]
[1760022314961,0.88285,121620.0,121600.0,0.41523917]
[1760022315559,0.11269,121620.0,121610.0,0.004]
[1760022315763,0.07713,121620.0,121610.0,0.51534]
[1760022315960,0.07713,121620.0,121610.0,0.0606]
[1760022316167,0.07713,121620.0,121610.0,0.3628]
[1760022316467,0.07713,121620.0,121610.0,0.002]
[1760022316967,0.11269,121620.0,121610.0,0.002]
[1760022317367,0.88281,121620.0,121600.0,0.41923917]
[1760022317569,0.88281,121620.0,121600.0,0.41723917]
[1760022317757,0.88281,121620.0,121610.0,0.002]
[1760022318764,0.88281,121620.0,121600.0,0.41923917]
[1760022319062,1.22546271,121620.0,121600.0,0.41923917]
[1760022319266,0.41978271,121610.0,121600.0,0.36287917]
[1760022319767,0.41978271,121610.0,121600.0,0.36087917]
[1760022319968,0.41978271,121610.0,121600.0,0.3608]
[1760022320165,0.07713,121610.0,121600.0,0.3608]
[1760022320363,0.07713,121610.0,121590.0,0.4194]
[1760022320564,0.09976564,121610.0,121600.0,0.0586]
[1760022320765,0.84721,121610.0,121590.0,0.4194]
[1760022320965,0.84721,121610.0,121600.0,0.3618]
[1760022321162,0.84721,121610.0,121600.0,0.001]
[1760022321568,0.0997581,121610.0,121600.0,0.002]
[1760022321768,0.8698381,121610.0,121600.0,0.002]
[1760022321962,0.0997581,121610.0,121600.0,0.002]
[1760022322163,0.8697981,121610.0,121600.0,0.002]
[1760022322563,0.0997581,121610.0,121600.0,0.002]
[1760022322766,0.8698381,121610.0,121600.0,0.002]
[1760022323970,0.8697581,121610.0,121600.0,0.002]
[1760022324767,0.0997581,121610.0,121600.0,0.3628]
[1760022324968,0.8697981,121610.0,121600.0,0.002]
[1760022325470,0.8697181,121610.0,121600.0,0.002]
[1760022326168,0.8697581,121610.0,121600.0,0.002]
[1760022326370,0.8697181,121610.0,121600.0,0.002]
[1760022327373,0.0997581,121610.0,121600.0,0.002]
[1760022327672,0.8696781,121610.0,121600.0,0.002]
[1760022328469,0.0997581,121610.0,121600.0,0.002]
[1760022328672,0.8696781,121610.0,121600.0,0.002]
[1760022329775,0.8696781,121610.0,121600.0,0.001]
[1760022329776,0.8706781,121610.0,121600.0,0.001]
[1760022330670,0.8706781,121610.0,121590.0,0.4194]
[1760022330671,0.8705981,121610.0,121590.0,0.4194]
[1760022330878,0.8715981,121610.0,121590.0,0.4194]
[1760022331772,0.0045,121600.0,121590.0,0.4194]
[1760022331978,0.0997581,121600.0,121590.0,0.4194]
[1760022332978,0.0997581,121600.0,121590.0,0.51134]
[1760022333168,0.0997581,121600.0,121590.0,0.4194]
[1760022333574,0.16702757,121600.0,121590.0,0.51134]
[1760022334175,0.08989757,121600.0,121590.0,0.89494414]
[1760022334382,0.16702757,121600.0,121590.0,0.89494414]
[1760022334580,0.16802757,121600.0,121590.0,0.89494414]
[1760022335579,0.19029466,121600.0,121590.0,0.51134]
[1760022336185,0.19029466,121600.0,121590.0,0.89494414]
[1760022337377,0.04689519,121600.0,121590.0,2.06450414]
[1760022337576,0.04689519,121600.0,121590.0,1.29494414]
[1760022338172,0.12402519,121600.0,121590.0,0.54294894]
[1760022338984,0.04689519,121600.0,121590.0,0.92655308]
[1760022339180,0.12402519,121600.0,121590.0,0.92655308]
[1760022340278,0.12402519,121600.0,121590.0,1.69599308]
[1760022341186,0.12402519,121600.0,121590.0,0.92655308]
[1760022341486,0.12402519,121600.0,121590.0,1.31234894]
[1760022342480,0.19030775,121600.0,121590.0,1.31234894]
[1760022342781,0.19030775,121600.0,121590.0,1.28074]
[1760022343178,0.19030775,121600.0,121590.0,0.89494414]
[1760022343380,0.11317775,121600.0,121590.0,0.89494414]
[1760022343683,0.11317775,121600.0,121590.0,1.66422414]
[1760022344582,0.11317775,121600.0,121590.0,1.28062]
[1760022344784,0.11317775,121600.0,121590.0,1.66422414]
[1760022345778,0.11317775,121600.0,121590.0,1.66414414]
[1760022345979,0.11317775,121600.0,121590.0,0.89494414]
[1760022346278,0.11317775,121600.0,121590.0,1.66414414]
[1760022346880,0.18248775,121600.0,121590.0,0.89494414]
[1760022347085,0.18248775,121600.0,121590.0,1.66410414]
[1760022347285,0.18248775,121600.0,121590.0,0.89494414]
[1760022347481,0.18248775,121600.0,121590.0,1.66406414]
[1760022348182,0.11317775,121600.0,121590.0,1.69563308]
[1760022348985,0.09091066,121600.0,121590.0,1.40876368]
[1760022349181,0.0246281,121600.0,121590.0,2.17780368]
[1760022350583,0.0226281,121600.0,121590.0,2.17780368]
[1760022350789,0.09054574,121610.0,121600.0,0.14409]
[1760022350994,0.11339766,121610.0,121600.0,0.88849414]
[1760022352490,0.02285192,121610.0,121600.0,1.37069804]
[1760022352883,0.02735192,121610.0,121600.0,1.37069804]
[1760022354089,0.02735192,121610.0,121600.0,1.47788006]
[1760022354688,0.02735192,121610.0,121600.0,1.39567616]
[1760022354888,0.02735192,121610.0,121600.0,2.16443616]
[1760022355088,0.02735192,121610.0,121600.0,1.39567616]
[1760022355289,0.02735192,121610.0,121600.0,2.16443616]
[1760022355895,0.02735192,121610.0,121600.0,2.24664006]
[1760022356097,0.02735192,121610.0,121600.0,1.72327314]
[1760022356294,0.02735192,121610.0,121600.0,2.49195314]
[1760022356595,0.02835192,121610.0,121600.0,2.49195314]
[1760022357294,0.02935192,121610.0,121600.0,1.72327314]
[1760022357495,0.02935192,121610.0,121600.0,2.49195314]
[1760022357696,0.02935192,121610.0,121600.0,2.24648006]
[1760022357895,0.02735192,121610.0,121600.0,2.24644006]
[1760022358798,0.02735192,121610.0,121600.0,2.31178236]
[1760022359098,0.02735192,121610.0,121600.0,1.54322236]
[1760022359292,0.02735192,121610.0,121600.0,2.24644006]
[1760022359691,0.02735192,121610.0,121600.0,2.24636006]
[1760022359887,0.02735192,121610.0,121600.0,0.50489]
[1760022360094,0.336265,121610.0,121600.0,0.50489]
[1760022360298,0.336265,121610.0,121600.0,1.51872308]
[1760022360495,0.336265,121610.0,121600.0,1.55033202]
[1760022360897,0.09087192,121610.0,121600.0,1.55033202]
[1760022361196,0.736265,121610.0,121600.0,0.53649894]
[1760022361400,0.98265808,121610.0,121600.0,1.1292]
[1760022361598,0.737265,121610.0,121600.0,1.12916]
[1760022362100,0.8754954,121610.0,121600.0,1.18182]
[1760022362604,0.8764954,121610.0,121600.0,1.18182]
[1760022363699,0.8764954,121610.0,121590.0,0.45100894]
[1760022363901,0.45164348,121600.0,121590.0,0.03160894]
[1760022364197,0.4744954,121600.0,121590.0,0.03160894]
[1760022365203,0.45164348,121600.0,121590.0,0.03160894]
[1760022365403,0.45164348,121600.0,121590.0,0.53649894]
[1760022365798,0.45164348,121600.0,121590.0,0.44506894]
[1760022366505,0.45164348,121600.0,121590.0,0.08426894]
[1760022366706,0.45164348,121600.0,121590.0,0.44506894]
[1760022366904,0.45164348,121600.0,121590.0,0.03160894]
[1760022367105,0.45164348,121600.0,121580.0,1.21504894]
[1760022367498,0.04251,121580.0,121570.0,0.3608]
[1760022367807,0.49415348,121580.0,121570.0,0.3608]
[1760022368508,1.25495348,121580.0,121550.0,1.18158]
[1760022368697,0.45164348,121560.0,121550.0,0.50489]
[1760022368912,0.06802,121560.0,121550.0,0.50489]
[1760022369409,0.09103446,121560.0,121550.0,0.53649894]
[1760022369614,0.09103446,121560.0,121550.0,0.53749894]
[1760022369909,0.09103446,121560.0,121550.0,0.50589]
[1760022370112,0.09103446,121560.0,121550.0,0.53749894]
[1760022370515,0.47465794,121560.0,121550.0,0.50589]
[1760022370712,0.87465794,121560.0,121550.0,0.3638]
[1760022373914,0.87465794,121560.0,121540.0,0.41346]
[1760022373915,1.23545794,121560.0,121540.0,0.3608]
[1760022374112,1.23545794,121560.0,121520.0,0.05266]
[1760022374113,0.0568,121530.0,121520.0,0.50203]
[1760022374313,0.44042348,121530.0,121520.0,0.50203]
[1760022374617,0.0568,121550.0,121540.0,0.1447]
[1760022374822,0.0568,121550.0,121540.0,0.5055]
[1760022376813,0.0568,121550.0,121540.0,0.8663]
[1760022378118,0.12132069,121550.0,121540.0,0.8663]
[1760022378318,0.0568,121550.0,121540.0,0.8663]
[1760022379919,0.40663794,121560.0,121550.0,0.1447]
[1760022379920,0.07981446,121560.0,121550.0,0.1447]
[1760022380116,0.07981446,121560.0,121550.0,0.5055]
[1760022380921,0.08081446,121560.0,121550.0,1.27334]
[1760022381319,0.08081446,121560.0,121550.0,0.5055]
[1760022381526,0.46443794,121560.0,121550.0,0.5055]
[1760022382119,0.53091357,121560.0,121550.0,0.5055]
[1760022382627,0.14729009,121560.0,121550.0,0.5055]
[1760022382822,0.14729009,121560.0,121550.0,0.41693]
[1760022383024,0.14729009,121560.0,121550.0,0.5055]
[1760022383426,0.53091357,121560.0,121550.0,0.5055]
[1760022384026,1.29171357,121560.0,121540.0,0.05613]
[1760022384223,0.0568,121540.0,121520.0,0.41346]
[1760022384526,0.44492348,121530.0,121520.0,0.41346]
[1760022384717,0.0613,121530.0,121520.0,0.41346]
[1760022384920,0.0613,121530.0,121520.0,0.50203]
[1760022385429,0.0568,121530.0,121520.0,0.50203]
[1760022386027,0.0568,121530.0,121520.0,0.50303]
[1760022386821,0.0568,121530.0,121520.0,0.50203]
[1760022387027,0.0568,121530.0,121520.0,1.26971]